bitfinex/quotes_SOLUSD_20240906
["timestamp","ask_amount","ask_price","bid_price","bid_amount"]
[1725626489756,18.8433,132.68,132.59,18.8543]
[1725626489943,18.8433,132.68,132.59,26.3957]
[1725626490140,45.0,132.67,132.59,18.8543]
[1725626490464,18.8433,132.68,132.6,68.21554105]
[1725626490663,7.5385,132.66,132.61,7.5404]
[1725626490962,7.5393,132.64,132.6,75.75684105]
[1725626491164,7.5386,132.65,132.61,7.5406]
[1725626491338,18.8433,132.68,132.61,7.5406]
[1725626491539,7.5387,132.65,132.6,68.21554105]
[1725626492172,7.5405,132.62,132.58,0.8587134]
[1725626492372,34.0542,132.66,132.58,0.8587134]
[1725626492670,18.8487,132.64,132.58,0.8587134]
[1725626492876,45.0,132.63,132.58,0.8587134]
[1725626493175,7.542,132.59,132.58,0.8587134]
[1725626493874,6.0323,132.67,132.58,0.8587134]
[1725626494072,7.5413,132.61,132.58,0.8587134]
[1725626494251,7.5403,132.62,132.58,0.8587134]
[1725626494456,45.0,132.65,132.58,0.8587134]
[1725626494802,7.5397,132.64,132.58,0.8587134]
[1725626494943,7.5397,132.64,132.59,7.5415]
[1725626495275,24.8765,132.67,132.58,21.22199543]
[1725626495276,9.23987854,132.63,132.58,21.22199543]
[1725626495478,24.8765,132.67,132.58,19.7140134]
[1725626495650,9.23892749,132.65,132.58,0.8587134]
[1725626495971,9.23892749,132.64,132.58,0.8587134]
[1725626496359,45.0,132.63,132.58,0.8587134]
[1725626496561,7.5398,132.63,132.59,7.542]
[1725626496759,7.5403,132.62,132.58,0.8587134]
[1725626497273,7.5416,132.6,132.58,0.8587134]
[1725626497474,7.5409,132.61,132.58,0.8587134]
[1725626497681,7.541,132.61,132.58,0.8587134]
[1725626498173,18.8489,132.64,132.58,0.8587134]
[1725626498407,7.542,132.59,132.58,0.8587134]
[1725626498751,16.78374894,132.59,132.58,0.8587134]
[1725626498975,7.542,132.59,132.58,0.8587134]
[1725626499183,52.542,132.59,132.58,0.8587134]
[1725626499468,45.0,132.63,132.58,0.8587134]
[1725626499677,22.59791649,132.62,132.58,8.4012134]
[1725626499885,7.5402,132.63,132.58,8.4010134]
[1725626500059,7.539,132.65,132.6,7.541]
[1725626500256,7.539,132.65,132.59,18.8541]
[1725626500257,18.8429,132.68,132.59,87.06964105]
[1725626500467,7.5396,132.64,132.59,94.61134105]
[1725626500663,7.5402,132.63,132.59,18.8541]
[1725626500883,64.02954368,132.66,132.58,0.8587134]
[1725626501069,7.5409,132.61,132.58,0.8587134]
[1725626501275,7.542,132.59,132.58,0.8587134]
[1725626501472,7.541,132.61,132.58,0.8587134]
[1725626501788,7.542,132.59,132.58,0.8587134]
[1725626502162,7.5416,132.6,132.58,0.8587134]
[1725626502492,7.541,132.61,132.58,0.8587134]
[1725626502987,7.5414,132.6,132.58,0.8587134]
[1725626503362,7.542,132.59,132.58,0.8587134]
[1725626503565,18.8501,132.63,132.58,0.8587134]
[1725626503796,45.04410147,132.66,132.58,0.8587134]
[1725626503797,9.2410419,132.62,132.58,0.8587134]
[1725626504099,7.5401,132.63,132.58,19.7148134]
[1725626504266,7.5401,132.63,132.58,27.2572134]
[1725626504464,7.541,132.61,132.58,19.7148134]
[1725626504663,37.6923,132.66,132.58,0.8587134]
[1725626504864,7.542,132.59,132.58,0.8587134]
[1725626505173,7.5415,132.6,132.58,0.8587134]
[1725626505487,7.542,132.59,132.58,0.8587134]
[1725626505684,16.78391721,132.59,132.58,0.8587134]
[1725626506268,7.542,132.59,132.58,0.8587134]
[1725626507788,30.14412287,132.59,132.58,0.8587134]
[1725626508296,75.14412287,132.59,132.58,0.8587134]
[1725626508997,75.14611318,132.59,132.58,0.8587134]
[1725626509593,30.14611318,132.59,132.58,0.8587134]
[1725626510008,7.542,132.59,132.58,0.8587134]
[1725626510176,16.78426791,132.59,132.58,0.8587134]
[1725626510675,7.542,132.59,132.58,0.8587134]
[1725626510875,30.14461164,132.59,132.58,0.8587134]
[1725626511071,75.14461164,132.59,132.58,0.8587134]
[1725626511380,16.78426791,132.59,132.58,0.8587134]
[1725626511704,7.542,132.59,132.58,0.8587134]
[1725626512401,30.1446297,132.59,132.58,0.8587134]
[1725626512792,7.5467,132.51,132.47,26.4198]
[1725626513113,18.861,132.55,132.46,7.5493]
[1725626513114,7.5475,132.5,132.46,7.5493]
[1725626513275,7.5468,132.51,132.46,7.5493]
[1725626513477,18.8639,132.53,132.45,7.5499]
[1725626513797,7.5477,132.49,132.45,7.5499]
[1725626514174,18.8669,132.51,132.44,0.8587134]
[1725626514371,9.24669165,132.5,132.44,8.4092134]
[1725626514574,7.5479,132.49,132.45,7.5498]
[1725626515005,56.5901,132.54,132.44,0.8587134]
[1725626515006,7.5489,132.47,132.44,0.8587134]
[1725626515191,18.8654,132.52,132.44,0.8587134]
[1725626515373,37.7268,132.54,132.44,0.8587134]
[1725626515374,7.5499,132.46,132.44,0.8587134]
[1725626515571,18.8683,132.5,132.44,0.8587134]
[1725626515795,67.61526801,132.49,132.44,0.8587134]
[1725626515992,7.55,132.45,132.44,0.8587134]
[1725626517101,18.8713,132.48,132.44,0.8587134]
[1725626517399,15.4438,132.5,132.44,0.8587134]
[1725626517599,9.24785529,132.49,132.44,0.8587134]
[1725626517806,7.5495,132.46,132.44,0.8587134]
[1725626518001,7.549,132.47,132.44,0.8587134]
[1725626518201,7.5483,132.48,132.44,0.8587134]
[1725626518387,7.5489,132.47,132.44,0.8587134]
[1725626518591,7.5495,132.46,132.44,0.8587134]
[1725626518791,7.55,132.45,132.44,0.8587134]
[1725626520378,52.55,132.45,132.44,0.8587134]
[1725626521802,6.2979,132.52,132.44,0.8587134]
[1725626521981,15.5107,132.55,132.44,0.8587134]
[1725626522182,9.24698212,132.54,132.46,18.8727]
[1725626522406,7.5475,132.5,132.45,7.5498]
[1725626522610,7.5464,132.52,132.45,57.57277647]
[1725626522912,15.5107,132.55,132.45,18.8746]
[1725626523111,15.5107,132.55,132.47,18.8715]
[1725626523289,7.5475,132.5,132.45,7.5494]
[1725626523808,7.5472,132.5,132.44,19.7347134]
[1725626523990,15.5107,132.55,132.44,0.8587134]
[1725626524305,7.5466,132.51,132.46,7.5489]
[1725626524508,7.5466,132.51,132.47,7.5487]
[1725626525212,7.5466,132.51,132.46,7.5493]
[1725626525408,7.5476,132.5,132.45,26.4243]
[1725626525606,7.5485,132.48,132.44,8.4091134]
[1725626525930,7.5485,132.48,132.44,0.8587134]
[1725626525931,7.5483,132.48,132.44,0.8587134]
[1725626526296,7.5473,132.5,132.45,7.5499]
[1725626526508,7.5482,132.49,132.44,27.2850134]
[1725626526719,7.5484,132.48,132.44,0.8587134]
[1725626527020,53.2345,132.55,132.44,0.8587134]
[1725626527021,7.549,132.47,132.44,0.8587134]
[1725626527190,7.55,132.45,132.44,0.8587134]
[1725626527704,52.55,132.45,132.44,0.8587134]
[1725626528201,18.8787,132.43,132.33,7.5567]
[1725626528389,18.8811,132.41,132.31,0.8587134]
[1725626528587,45.0,132.42,132.31,0.8587134]
[1725626528588,7.5561,132.35,132.31,0.8587134]
[1725626528889,7.5552,132.36,132.32,7.5573]
[1725626529083,7.5547,132.37,132.32,7.5573]
[1725626529300,7.5546,132.37,132.31,8.4161134]
[1725626529500,7.5546,132.37,132.31,0.8587134]
[1725626529705,45.0,132.42,132.34,7.5558]
[1725626529706,7.5536,132.39,132.34,7.5558]
[1725626529905,7.5529,132.4,132.35,7.5552]
[1725626530109,7.5529,132.4,132.31,0.8587134]
[1725626530110,15.2984,132.45,132.34,69.0698383]
[1725626530314,15.2984,132.45,132.36,69.0698383]
[1725626530530,7.5518,132.42,132.36,95.5112383]
[1725626530710,15.2984,132.45,132.36,18.8867]
[1725626530911,15.2984,132.45,132.34,7.5561]
[1725626530912,7.5535,132.39,132.34,7.5561]
[1725626531222,7.5546,132.37,132.32,26.4495]
[1725626531599,7.5546,132.37,132.32,18.8922]
[1725626531937,53.0494,132.45,132.31,8.4165134]
[1725626531938,7.5564,132.34,132.31,0.8587134]
[1725626532103,7.555,132.37,132.31,0.8587134]
[1725626532299,7.5556,132.36,132.31,0.8587134]
[1725626532697,7.5573,132.33,132.31,0.8587134]
[1725626532922,7.5574,132.32,132.31,0.8587134]
[1725626534033,7.5557,132.35,132.31,0.8587134]
[1725626534332,45.0,132.34,132.31,0.8587134]
[1725626535030,7.5563,132.34,132.31,0.8587134]
[1725626535225,11.85633309,132.39,132.31,0.8587134]
[1725626535530,7.5562,132.35,132.31,0.8587134]
[1725626535737,7.5565,132.34,132.31,0.8587134]
[1725626536114,15.2544,132.4,132.31,0.8587134]
[1725626536335,18.8874,132.37,132.31,0.8587134]
[1725626536534,7.5574,132.32,132.31,0.8587134]
[1725626536718,18.8874,132.37,132.31,0.8587134]
[1725626537028,7.5573,132.33,132.31,0.8587134]
[1725626537531,7.5574,132.32,132.31,0.8587134]
[1725626537821,7.5569,132.33,132.31,0.8587134]
[1725626538002,18.8855,132.38,132.31,0.8587134]
[1725626538202,7.5568,132.33,132.31,0.8587134]
[1725626538631,7.5574,132.32,132.31,0.8587134]
[1725626539529,52.5574,132.32,132.31,0.8587134]
[1725626540234,7.5563,132.34,132.31,0.8587134]
[1725626540529,7.5574,132.32,132.31,0.8587134]
[1725626541906,52.5574,132.32,132.31,0.8587134]
[1725626543126,7.5574,132.32,132.31,0.8587134]
[1725626544924,52.5574,132.32,132.31,0.8587134]
[1725626546113,52.5574,132.32,132.23,7.87755088]
[1725626546114,18.8974,132.3,132.23,7.87755088]
[1725626546314,7.5609,132.26,132.23,7.87755088]
[1725626546635,45.0,132.29,132.23,7.87755088]
[1725626546836,7.562,132.24,132.23,7.87755088]
[1725626547010,7.5615,132.25,132.23,7.87755088]
[1725626547425,7.562,132.24,132.23,7.87755088]
[1725626547625,51.4983,132.29,132.23,7.87755088]
[1725626547931,18.8943,132.32,132.26,69.0698383]
[1725626548236,6.4983,132.34,132.26,69.0698383]
[1725626548541,7.5603,132.27,132.24,69.0698383]
[1725626548830,7.5609,132.26,132.23,7.87755088]
[1725626549012,7.5603,132.27,132.23,7.87755088]
[1725626549329,18.8953,132.31,132.23,76.94738918]
[1725626549531,7.5603,132.27,132.23,76.94738918]
[1725626549743,18.8953,132.31,132.23,76.94738918]
[1725626550034,7.5607,132.27,132.23,76.94738918]
[1725626550208,7.5595,132.29,132.23,84.50948918]
[1725626550605,18.8953,132.31,132.23,15.43965088]
[1725626550805,7.5603,132.27,132.23,7.87755088]
[1725626551029,18.8981,132.29,132.23,7.87755088]
[1725626551232,7.5604,132.27,132.23,7.87755088]
[1725626551529,7.5597,132.28,132.25,69.0698383]
[1725626551916,7.5592,132.29,132.25,69.0698383]
[1725626552122,18.8942,132.32,132.23,7.87755088]
[1725626552526,18.8942,132.32,132.23,15.44005088]
[1725626552732,7.5603,132.27,132.23,7.87755088]
[1725626552927,18.8967,132.3,132.23,7.87755088]
[1725626553241,7.5615,132.25,132.23,7.87755088]
[1725626554916,18.8967,132.3,132.23,7.87755088]
[1725626555252,18.893,132.33,132.23,76.94738918]
[1725626555539,7.5557,132.35,132.3,7.5584]
[1725626555735,1.73582952,132.39,132.29,95.5258383]
[1725626555736,18.8846,132.39,132.29,95.5258383]
[1725626555921,7.5579,132.32,132.26,95.5319383]
[1725626556128,7.5579,132.32,132.27,7.5602]
[1725626556337,18.8871,132.37,132.26,18.9014]
[1725626556640,7.5576,132.32,132.27,7.5598]
[1725626557041,37.7699,132.39,132.26,18.9014]
[1725626557042,7.5585,132.3,132.26,18.9014]
[1725626557223,7.5575,132.32,132.27,7.5602]
[1725626557419,18.8859,132.38,132.26,87.9712383]
[1725626557729,7.5573,132.33,132.28,7.5595]
[1725626557922,7.5586,132.3,132.26,69.0698383]
[1725626558324,7.5581,132.31,132.26,76.6306383]
[1725626559238,37.7699,132.39,132.23,84.50978918]
[1725626559239,7.5602,132.28,132.23,84.50978918]
[1725626559445,7.5595,132.29,132.24,7.5619]
[1725626559739,18.8901,132.35,132.27,69.0698383]
[1725626559941,18.8901,132.35,132.24,69.0698383]
[1725626560127,7.5586,132.3,132.26,18.9018]
[1725626560329,7.5586,132.3,132.25,7.5609]
[1725626560931,7.5586,132.3,132.26,7.5608]
[1725626561335,7.5581,132.31,132.26,7.5608]
[1725626561526,7.5575,132.32,132.27,7.5601]
[1725626561933,18.8901,132.35,132.25,18.903]
[1725626562126,7.5587,132.3,132.25,26.4638]
[1725626562337,7.5587,132.3,132.26,7.5607]
[1725626562538,7.5581,132.31,132.26,7.5607]
[1725626562970,7.5581,132.31,132.27,7.5602]
[1725626563256,7.5563,132.34,132.29,94.13194986]
[1725626563422,7.5563,132.34,132.29,105.47044986]
[1725626563634,18.8861,132.38,132.29,18.8974]
[1725626563956,22.631578,132.37,132.29,18.8974]
[1725626564245,7.5564,132.34,132.29,26.4561]
[1725626564447,18.8861,132.38,132.29,18.8974]
[1725626564743,7.5565,132.34,132.29,26.4564]
[1725626565324,49.54737233,132.39,132.31,18.8944]
[1725626565325,11.77747233,132.39,132.31,18.8944]
[1725626565521,7.5547,132.37,132.32,7.5569]
[1725626565759,7.5536,132.39,132.34,7.5558]
[1725626565935,9.25261964,132.38,132.35,18.8888]
[1725626566142,18.02560013,132.45,132.35,18.8888]
[1725626566341,7.5526,132.41,132.36,7.555]
[1725626566729,7.5521,132.42,132.37,7.5542]
[1725626566952,9.25098935,132.41,132.37,7.5542]
[1725626567132,7.5523,132.41,132.36,7.555]
[1725626567656,7.5528,132.4,132.35,26.4443]
[1725626567828,7.5524,132.41,132.36,7.5551]
[1725626568256,18.8819,132.47,132.38,18.8845]
[1725626568555,7.551,132.44,132.39,7.5533]
[1725626568845,9.25083918,132.43,132.39,7.5533]
[1725626569052,9.25083918,132.43,132.31,96.57304986]
[1725626569053,9.25173766,132.42,132.33,7.5567]
[1725626569231,9.25173766,132.41,132.29,86.57304986]
[1725626569434,9.2520925,132.4,132.31,7.5575]
[1725626569727,9.2520925,132.39,132.3,25.1038]
[1725626569933,7.5548,132.37,132.32,7.5573]
[1725626570245,7.5552,132.36,132.31,7.5578]
[1725626570421,7.5552,132.36,132.3,25.1038]
[1725626570622,18.8815,132.41,132.3,25.1038]
[1725626570623,7.5546,132.37,132.32,7.5573]
[1725626570838,7.5545,132.38,132.33,7.5564]
[1725626571153,18.8815,132.41,132.32,18.8926]
[1725626571329,7.5546,132.37,132.32,26.4495]
[1725626571825,18.8841,132.39,132.3,7.5585]
[1725626572147,7.5555,132.36,132.32,7.5574]
[1725626572647,37.7611,132.42,132.29,18.8976]
[1725626572648,18.8793,132.42,132.33,18.8911]
[1725626572852,18.8793,132.42,132.35,7.5556]
[1725626573048,7.5534,132.39,132.34,7.5561]
[1725626573554,7.5527,132.41,132.36,7.5551]
[1725626573748,7.5538,132.39,132.35,18.8886]
[1725626573944,18.8787,132.43,132.31,1.8035281]
[1725626573945,7.554,132.38,132.33,7.5567]
[1725626574253,7.5536,132.39,132.34,7.556]
[1725626574553,18.8787,132.43,132.35,7.5552]
[1725626574753,7.5535,132.39,132.34,26.4463]
[1725626575051,37.7526,132.45,132.3,86.57304986]
[1725626575052,16.80521958,132.38,132.3,86.57304986]
[1725626575253,7.5536,132.39,132.34,7.5562]
[1725626575556,18.8811,132.41,132.33,26.4484]
[1725626575557,16.80539401,132.38,132.33,26.4484]
[1725626575857,7.5541,132.38,132.33,26.4484]
[1725626576234,7.5532,132.4,132.33,18.8917]
[1725626576452,9.25147779,132.39,132.33,90.96926931]
[1725626576653,7.553,132.4,132.35,7.5553]
[1725626576832,9.25088961,132.39,132.35,7.5553]
[1725626577032,18.8775,132.44,132.35,18.889]
[1725626577232,7.5528,132.4,132.36,7.5549]
[1725626577449,18.8796,132.42,132.35,18.889]
[1725626577645,7.554,132.38,132.35,18.889]
[1725626577852,7.5536,132.39,132.35,26.4447]
[1725626578156,7.5534,132.39,132.35,26.4447]
[1725626578361,11.7940633,132.47,132.38,82.07756931]
[1725626578563,6.53,132.55,132.49,7.5472]
[1725626578564,14.0744,132.55,132.49,7.5472]
[1725626578737,9.24505692,132.54,132.5,9.05615772]
[1725626578934,9.24505692,132.53,132.48,18.8701]
[1725626579167,7.5455,132.53,132.48,18.8701]
[1725626579455,16.79067837,132.52,132.47,7.5488]
[1725626579656,34.4144,132.56,132.47,7.5488]
[1725626579657,9.24457837,132.51,132.48,1.50941879]
[1725626579865,7.5449,132.54,132.48,9.05751879]
[1725626580041,7.5444,132.55,132.49,7.5476]
[1725626580360,15.5543,132.56,132.5,7.547]
[1725626580361,23.0981,132.56,132.5,7.547]
[1725626580568,7.5447,132.55,132.5,7.547]
[1725626580859,15.5543,132.56,132.46,7.5493]
[1725626580860,7.547,132.51,132.46,7.5493]
[1725626581039,15.5543,132.56,132.44,18.8757]
[1725626581229,7.5465,132.52,132.47,7.5488]
[1725626581435,15.5543,132.56,132.48,1.50921708]
[1725626581654,6.53,132.6,132.51,18.8656]
[1725626581878,7.5432,132.57,132.52,7.5455]
[1725626582155,7.543,132.58,132.53,7.5454]
[1725626582359,7.5431,132.57,132.52,7.5459]
[1725626582665,7.5431,132.57,132.51,18.8656]
[1725626582666,7.5438,132.56,132.51,18.8656]
[1725626582867,37.7133,132.58,132.43,15.3883]
[1725626583161,18.8631,132.54,132.42,92.35915138]
[1725626583469,22.7655,132.5,132.31,6.6637]
[1725626583651,18.8776,132.44,132.33,18.8916]
[1725626583960,7.5535,132.39,132.34,7.5562]
[1725626584141,7.5546,132.37,132.33,18.8916]
[1725626584461,18.8801,132.42,132.28,101.58425138]
[1725626584462,18.8801,132.42,132.31,86.28755138]
[1725626584841,7.5524,132.41,132.36,7.5545]
[1725626585662,7.5529,132.4,132.35,7.5557]
[1725626586259,7.553,132.4,132.35,7.5557]
[1725626586464,7.5537,132.39,132.34,26.4461]
[1725626586768,7.5535,132.39,132.31,18.8946]
[1725626586944,7.5535,132.39,132.33,18.8908]
[1725626587261,37.7483,132.46,132.35,18.8884]
[1725626587262,18.874,132.46,132.35,18.8884]
[1725626588170,7.551,132.44,132.39,7.5533]
[1725626588371,7.5512,132.43,132.38,7.5538]
[1725626588863,7.5518,132.42,132.38,7.5538]
[1725626589168,11.75136049,132.48,132.34,26.4463]
[1725626589169,7.5535,132.39,132.34,26.4463]
[1725626589667,7.553,132.4,132.35,7.5557]
[1725626590165,18.8757,132.45,132.36,1.51053913]
[1725626590338,18.8757,132.45,132.34,18.8902]
[1725626590539,7.5532,132.4,132.35,7.5554]
[1725626590946,7.5524,132.41,132.36,1.5105849]
[1725626591165,7.5516,132.43,132.37,1.51036217]
[1725626591372,30.62286049,132.48,132.38,18.8845]
[1725626591538,30.62286049,132.48,132.4,7.5523]
[1725626591952,7.5501,132.45,132.41,7.5521]
[1725626592159,7.5501,132.45,132.4,7.5527]
[1725626592345,7.5518,132.42,132.38,26.4385]
[1725626592554,11.77533324,132.53,132.35,18.8883]
[1725626592555,37.7469,132.47,132.35,18.8883]
[1725626592868,37.7469,132.47,132.35,26.4439]
[1725626592869,7.5534,132.39,132.35,26.4439]
[1725626593168,7.5536,132.39,132.35,26.4439]
[1725626594245,7.5529,132.4,132.35,26.4439]
[1725626596873,18.8769,132.44,132.35,18.8883]
[1725626597091,7.5519,132.42,132.38,7.5539]
[1725626597367,37.7469,132.47,132.34,18.8899]
[1725626597750,37.7548,132.44,132.31,18.8943]
[1725626597946,7.5547,132.37,132.32,7.557]
[1725626598172,7.5559,132.35,132.31,26.4521]
[1725626599760,18.884,132.39,132.32,7.5569]
[1725626599761,7.5549,132.37,132.32,7.5569]
[1725626599970,7.5551,132.36,132.32,7.5569]
[1725626600158,7.5547,132.37,132.33,7.5567]
[1725626600352,18.8801,132.42,132.33,18.8916]
[1725626600558,18.8801,132.42,132.34,1.51049391]
[1725626600770,7.5535,132.39,132.35,7.5553]
[1725626601770,18.8823,132.4,132.33,18.8916]
[1725626602080,11.6470457,132.43,132.33,18.8916]
[1725626602374,7.5529,132.4,132.36,7.555]
[1725626602544,7.5534,132.39,132.35,26.4445]
[1725626602866,16.566,132.42,132.23,15.3134]
[1725626603075,7.5557,132.36,132.31,26.4521]
[1725626603260,18.884,132.39,132.24,86.28755138]
[1725626603459,35.4457,132.42,132.3,6.2524]
[1725626603649,7.5539,132.39,132.32,18.893]
[1725626603844,7.5541,132.38,132.34,7.556]
[1725626604052,7.553,132.4,132.34,18.8899]
[1725626604353,18.8759,132.45,132.36,26.4418]
[1725626604354,7.5525,132.41,132.36,26.4418]
[1725626604568,18.8759,132.45,132.36,18.8868]
[1725626604797,18.8759,132.45,132.3,28.8724]
[1725626604798,7.5544,132.38,132.33,26.4484]
[1725626605087,7.5544,132.38,132.3,6.2524]
[1725626605088,18.8817,132.41,132.3,25.1481]
[1725626605287,37.7551,132.44,132.3,25.1481]
[1725626605288,7.5562,132.34,132.3,26.4541]
[1725626605665,18.8847,132.39,132.3,18.8957]
[1725626606167,7.5528,132.4,132.35,7.5552]
[1725626606687,37.7551,132.44,132.35,7.5552]
[1725626606688,7.5506,132.44,132.36,1.51037839]
[1725626606881,6.4418,132.46,132.36,45.0]
[1725626607387,7.5494,132.46,132.41,7.5522]
[1725626608495,7.5502,132.45,132.4,26.4336]
[1725626608676,7.5502,132.45,132.41,7.5522]
[1725626608880,7.5494,132.46,132.41,7.5522]
[1725626609066,7.5506,132.44,132.4,18.8809]
[1725626609570,6.0183,132.45,132.24,6.0619]
[1725626609792,11.5169962,132.44,132.27,50.0]
[1725626609968,7.5536,132.39,132.27,158.90755138]
[1725626610169,7.5536,132.39,132.28,1.79964914]
[1725626610364,11.5169962,132.44,132.29,50.0]
[1725626610568,11.5169962,132.44,132.3,86.28755138]
[1725626610869,7.5533,132.4,132.34,26.4457]
[1725626611286,24.8936,132.45,132.34,18.8895]
[1725626611488,7.5506,132.44,132.35,1.51006742]
[1725626611675,7.55,132.45,132.39,7.5529]
[1725626612091,6.0183,132.5,132.43,7.5509]
[1725626612398,7.5492,132.47,132.42,7.5516]
[1725626613475,7.5483,132.48,132.42,7.5516]
[1725626613983,18.8695,132.49,132.4,18.8819]
[1725626614304,7.55,132.45,132.4,18.8819]
[1725626615194,18.8695,132.49,132.36,86.28755138]
[1725626615195,7.5517,132.42,132.37,7.5545]
[1725626615372,7.5523,132.41,132.36,26.4417]
[1725626615578,7.553,132.4,132.36,18.8866]
[1725626616181,7.5523,132.41,132.36,26.4417]
[1725626616382,37.7478,132.46,132.34,6.0619]
[1725626616705,7.5541,132.38,132.34,6.0619]
[1725626617275,7.5535,132.39,132.34,13.618]
[1725626619283,7.5535,132.39,132.35,7.5556]
[1725626619588,63.2006,132.46,132.37,7.5545]
[1725626619780,63.2006,132.46,132.34,6.0619]
[1725626619781,44.3263,132.46,132.34,6.0619]
[1725626619986,18.877,132.44,132.35,18.8882]
[1725626620420,16.566,132.56,132.47,6.254]
[1725626620698,7.5386,132.66,132.56,18.859]
[1725626620871,34.4443,132.73,132.62,7.5397]
[1725626621074,10.0,132.75,132.63,7.5397]
[1725626621302,7.5329,132.76,132.68,7.5366]
[1725626621504,30.235198,132.76,132.67,18.8436]
[1725626621798,0.8587134,132.77,132.7,7.5355]
[1725626621977,0.8587134,132.77,132.72,86.06971093]
[1725626622173,0.8587134,132.77,132.65,86.06971093]
[1725626622174,0.8587134,132.77,132.75,93.60241093]
[1725626622374,0.8587134,132.77,132.76,1.50601039]
[1725626622677,0.8587134,132.91,132.76,22.01964214]
[1725626622881,0.8587134,132.91,132.81,86.06971093]
[1725626623085,0.8587134,132.91,132.83,7.5283]
[1725626623289,0.8587134,132.91,132.81,104.89321093]
[1725626623290,0.8587134,132.91,132.84,87.57465901]
[1725626623483,0.8587134,132.91,132.88,7.5254]
[1725626623683,0.8587134,132.91,132.9,86.06971093]
[1725626623895,0.8587134,132.91,132.9,87.57394159]
[1725626624087,0.8587134,132.91,132.83,104.89031093]
[1725626624279,0.8587134,132.91,132.85,7.5269]
[1725626624684,0.8587134,132.91,132.84,2.01347459]
[1725626624988,0.8587134,132.91,132.84,2.01365813]
[1725626625196,0.8587134,132.91,132.81,7.5293]
[1725626625578,0.8587134,132.91,132.81,9.54445743]
[1725626625784,0.8587134,132.91,132.8,2.01515743]
[1725626626086,7.5275,132.85,132.78,28.37703302]
[1725626626288,7.5282,132.84,132.78,18.8269]
[1725626626493,18.8123,132.9,132.77,86.06971093]
[1725626626699,0.8587134,132.91,132.74,104.90311093]
[1725626626700,45.0,132.89,132.74,104.90311093]
[1725626626911,7.5297,132.81,132.74,104.90311093]
[1725626627081,7.5302,132.8,132.74,18.8334]
[1725626627292,7.532,132.77,132.71,86.06971093]
[1725626627490,7.532,132.77,132.7,18.8393]
[1725626627689,18.8209,132.84,132.66,18.8448]
[1725626627909,10.0,132.86,132.66,18.8448]
[1725626627910,18.8253,132.8,132.66,26.3825]
[1725626628112,7.5338,132.74,132.67,7.5373]
[1725626628297,7.5349,132.72,132.65,86.06971093]
[1725626628498,7.5359,132.7,132.62,104.92031093]
[1725626628702,18.8307,132.77,132.62,104.92031093]
[1725626628703,7.5349,132.72,132.64,7.5389]
[1725626628890,7.5354,132.71,132.64,7.5389]
[1725626629214,7.5354,132.71,132.62,26.3905]
[1725626629513,18.8307,132.77,132.62,26.3905]
[1725626629697,7.5359,132.7,132.63,7.5396]
[1725626629896,45.0,132.76,132.63,7.5396]
[1725626630214,7.5354,132.71,132.64,7.5391]
[1725626631395,7.5359,132.7,132.64,7.5391]
[1725626631714,45.0,132.76,132.62,18.8506]
[1725626631715,18.8347,132.74,132.62,18.8506]
[1725626631884,7.5368,132.69,132.61,7.5408]
[1725626632088,18.8347,132.74,132.58,104.92561093]
[1725626632305,45.0,132.73,132.58,104.92561093]
[1725626632505,45.0,132.73,132.61,7.5408]
[1725626632712,45.0,132.73,132.58,104.92561093]
[1725626632901,34.7672,132.78,132.62,18.8505]
[1725626633100,34.7672,132.78,132.65,7.5384]
[1725626633101,7.535,132.72,132.65,7.5384]
[1725626633419,7.5352,132.71,132.65,18.8457]
[1725626633993,34.7672,132.78,132.65,18.8457]
[1725626634303,34.7672,132.78,132.66,45.0]
[1725626634511,7.5344,132.73,132.66,45.0]
[1725626634714,34.7672,132.78,132.68,18.8421]
[1725626634715,7.5334,132.75,132.68,18.8421]